Cogmind - Beta 13 @@@ ROGUE MODE // 2024.04.13 @ 23:00:29 Player: SovietPaperclip Result: Self-destructed Performance ------------- Evolutions (4) 2000 Regions Visited (10) 2000 Robots Destroyed (116) 580 Value Destroyed (4566) 4566 Prototype IDs (32) 640 Alien Tech Used (0) 0 Bonus (2356) 2356 TOTAL SCORE: 12142 Bonus ------- High Alert Combat Kills 459 Follower Combat Kills 383 Entered Garrisons 400 Used RIF Installer 1000 Aligned with FarCom 300 Friendly Fire -186 Cogmind --------- Core Integrity 359/850 Matter 300/300 Energy 77/100 System Corruption 3% Temperature Warm (138) Movement Walking (120) Location -6/Garrison Parts ------- > --- POWER (2) -------- (None) > --- PROPULSION (4) --- Carbon-fiber Leg Carbon-fiber Leg Carbon-fiber Leg Carbon-fiber Leg > --- UTILITY (6) ------ Coolant Injector High-capacity Storage Unit Improved Signal Interpreter Relay Coupler [Grunt] (10) > --- WEAPON (3) ------- High-powered Shock Rifle High-powered Shock Rifle 01-MTF's Shockpuncher > --- INVENTORY (20) --- Light Angular Momentum Engine Advanced Energy Well (500) Large Matter Pod (141) Faulty Experimental Sensor Array Advanced Terrain Scanner Transmission Jammer Advanced Phase Shifter Relay Coupler [NC] (23) Relay Coupler [NC] (27) Relay Coupler [NC] (41) Relay Coupler [NC] (38) Relay Coupler [Grunt] (41) High-powered Shock Rifle High-powered Shock Rifle High-powered Shock Rifle High-powered Shock Rifle YOLO Cannon Remote Datajack Power Maul Peak State ------------ > --- POWER ------------ Light Fission Core Light Antimatter Reactor > --- PROPULSION ------- Carbon-fiber Leg Carbon-fiber Leg Carbon-fiber Leg Carbon-fiber Leg > --- UTILITY ---------- High-capacity Storage Unit Improved Signal Interpreter Transmission Jammer Heavy Reflective Plating Relay Coupler [Grunt] > --- WEAPON ----------- High-powered Shock Rifle High-powered Shock Rifle High-powered Shock Rifle > --- INVENTORY -------- Light Angular Momentum Engine Coolant Injector Advanced Energy Well Large Matter Pod Experimental Sensor Array Advanced Terrain Scanner Advanced Phase Shifter Relay Coupler [NC] Relay Coupler [NC] Relay Coupler [NC] Relay Coupler [NC] Relay Coupler [Grunt] High-powered Shock Rifle High-powered Shock Rifle 01-MTF's Shockpuncher YOLO Cannon Remote Datajack Power Maul [Rating: 69] Favorites ----------- Power Mini Fusion Reactor Engine Ion Engine Power Core Micro Nuclear Core Reactor Mini Fusion Reactor Propulsion Armored Huge Wheel Treads Light Treads Leg Carbon-fiber Leg Wheel Armored Huge Wheel Utility High-capacity Storage Unit Device Transmission Jammer Storage High-capacity Storage Unit Processor Signal Interpreter Hackware Hacking Suite Protection Improved Medium Armor Plating Weapon Gauss Cannon Energy Gun Improved Spread Laser Energy Cannon Advanced Beam Cannon Ballistic Gun Assault Rifle Ballistic Cannon Gauss Cannon Launcher Grenade Launcher Special Weapon Remote Datajack Build | -11 -10 -10 -10 -9 -8 -8 -7 -7 -6 -6 ------- Run | Yrd Mat Min Exi Min Mat Sto Fac Gar Fac Gar Slots Evolved 8 | . . . . . 4 . 2 . 2 . Power 1 | . . . . . . . 1 . . . Propulsion 2 | . . . . . 2 . . . . . Utility 4 | . . . . . 2 . . . 2 . Weapon 1 | . . . . . . . 1 . . . Parts Attached 108 | 5 5 . 1 . 18 16 19 13 12 19 Power 15 | 1 . . . . 2 3 2 3 1 3 Engine 4 | 1 . . . . 1 1 . 1 . . Core 7 | . . . . . 1 . 2 2 1 1 Reactor 4 | . . . . . . 2 . . . 2 Propulsion 17 | 2 . . . . 3 3 4 1 . 4 Treads 8 | 2 . . . . 2 2 2 . . . Leg 4 | . . . . . . . . . . 4 Wheel 5 | . . . . . 1 1 2 1 . . Hover . | . . . . . . . . . . . Flight . | . . . . . . . . . . . Utility 34 | . 3 . 1 . 5 4 6 5 6 4 Device 14 | . . . . . 3 1 2 4 3 1 Storage 4 | . 2 . 1 . . 1 . . . . Processor 3 | . 1 . . . . . . . 2 . Hackware 3 | . . . . . . . 2 . . 1 Protection 10 | . . . . . 2 2 2 1 1 2 Artifact . | . . . . . . . . . . . Weapon 42 | 2 2 . . . 8 6 7 4 5 8 Energy Gun 19 | . . . . . 5 6 1 1 1 5 Energy Cannon 1 | . . . . . 1 . . . . . Ballistic Gun 8 | 2 1 . . . 1 . 3 . . 1 Ballistic Cannon 9 | . . . . . . . 3 3 2 1 Launcher 3 | . 1 . . . 1 . . . 1 . Special Weapon 2 | . . . . . . . . . 1 1 Impact Weapon . | . . . . . . . . . . . Slashing Weapon . | . . . . . . . . . . . Piercing Weapon . | . . . . . . . . . . . Special Melee Weapon . | . . . . . . . . . . . Unidentified Prototypes 9 | . . . . . 3 3 1 . 2 . Corrupted Parts 1 | . . . . . . . . 1 . . System Corruption 1 | . . . . . . . . 1 . . Parts Lost 31 | . . . . . 2 . 3 11 3 12 Power 11 | . . . . . 1 . 1 3 1 5 Propulsion 3 | . . . . . . . . 1 1 1 Utility 12 | . . . . . 1 . 1 4 1 5 Weapon 5 | . . . . . . . 1 3 . 1 Highest Loss Streak 6 | . . . . . 1 . 3 3 2 6 To Critical Strikes 1 | . . . . . . . . 1 . . Average Slot Usage (%) 85 | . 97 100 100 100 86 85 87 68 81 76 Engine 4 | . 14 14 14 14 1 . . 5 6 1 Core 4 | . . . . . 7 5 6 5 5 4 Reactor 2 | . . . . . . 3 7 1 . 5 Treads 12 | . 28 28 28 28 22 8 12 . . . Wheel 7 | . . . . . 5 13 8 12 9 2 Device 8 | . . . . . 8 16 7 7 20 8 Storage 8 | . 14 14 14 14 9 9 7 7 6 6 Processor 5 | . 12 14 14 14 9 . . . 8 6 Hackware 2 | . . . . . . . 8 3 . 3 Protection 4 | . . . . . 5 9 5 3 3 5 Energy Gun 5 | . . . . . 14 18 2 2 . 4 Ballistic Gun 7 | . 26 28 28 28 2 . 5 . . 3 Ballistic Cannon 7 | . . . . . . . 12 15 18 9 Naked Turns . | . . . . . . . . . . . Heaviest Build 99 | 9 20 19 49 49 60 65 84 84 89 99 Greatest Support 80 | 40 40 40 40 40 80 56 56 56 56 60 Greatest Overweight (x) 30 | . . . 1 1 2 2 2 2 3 30 Average Overweight (x) 1 | . . . . 1 1 1 1 1 1 2 Largest Inventory Capacity 20 | 5 10 10 20 20 20 20 20 20 20 20 Average Capacity 17 | 5 9 10 10 20 20 20 20 20 20 20 Most Carried 20 | 4 4 5 11 11 20 20 20 20 20 20 Average Carried 15 | 2 2 3 8 11 16 19 19 17 18 18 Final Capacity 20 | 5 10 10 20 20 20 20 20 20 20 20 Final Carried 20 | 3 3 5 11 11 20 20 20 19 19 20 Class Distribution -------------------- 56% | Mutant 11% | Hacker-Tank 9% | Bothacker-Tank 3% | Hacker-Gunner 3% | Scavenger-Tank 3% | Gunner Dominant Class ---------------- Mutant | -10/Materials Mutant | -10/Mines Mutant | -10/Exiles Mutant | -9/Mines Mutant | -8/Materials Mutant | -8/Storage Hacker-Tank | -7/Factory Mutant | -7/Garrison Bothacker-Tank | -6/Factory Bothacker-Tank | -6/Garrison Resources | -11 -10 -10 -10 -9 -8 -8 -7 -7 -6 -6 ----------- Run | Yrd Mat Min Exi Min Mat Sto Fac Gar Fac Gar Matter Collected 3897 | 250 . 125 48 . 398 160 639 1059 447 771 Remotely 81 | . . . . . . . . 81 . . Salvage Created 3868 | . . 97 . . 788 588 853 645 451 446 Parts 208 | . . 7 . . 51 35 51 28 18 18 Haulers Intercepted 14 | . . . . . 3 6 3 . 2 . Recyclers Shooed 2 | . . . . . . 2 . . . . Parts Field Recycled . | . . . . . . . . . . . Retrieved Matter . | . . . . . . . . . . . Parts Self-Destructed . | . . . . . . . . . . . Prevented . | . . . . . . . . . . . Kills | -11 -10 -10 -10 -9 -8 -8 -7 -7 -6 -6 ------- Run | Yrd Mat Min Exi Min Mat Sto Fac Gar Fac Gar Combat Hostiles Destroyed 82 | . . 6 . . 14 6 17 22 7 10 Guns 41 | . . 6 . . 11 6 9 7 . 2 Cannons 32 | . . . . . . . 8 15 4 5 AOE 7 | . . . . . 3 . . . 2 2 Classes Destroyed 13 | . . 1 . . 6 3 2 . 1 . Worker 6 | . . . . . 4 1 1 . . . Builder 3 | . . . . . . 1 1 . 1 . Hauler 14 | . . . . . 3 6 3 . 2 . Recycler 2 | . . . . . . 1 1 . . . Operator 4 | . . . . . 2 1 1 . . . Watcher 5 | . . . . . 2 1 2 . . . Swarmer 20 | . . 6 . . . 1 3 8 2 . Grunt 38 | . . . . . 12 3 6 12 1 4 Brawler 1 | . . . . . . . . . 1 . Duelist 3 | . . . . . . 1 . . 1 1 Sentry 8 | . . . . . 2 1 2 . 1 2 Hunter 6 | . . . . . . . 1 1 1 3 Programmer 6 | . . . . . . . 5 1 . . Best Kill Streak 6 | . . 3 . . 4 3 6 4 5 3 Combat Bots Only 6 | . . 3 . . 3 3 6 4 5 3 Max Kills in Single Turn 2 | . . 1 . . 1 2 2 1 1 1 Gunslinging . | . . . . . . . . . . . Exploded 1 | . . . . . 1 . . . 1 1 Melee . | . . . . . . . . . . . Uniques/NPCs Destroyed . | . . . . . . . . . . . Combat | -11 -10 -10 -10 -9 -8 -8 -7 -7 -6 -6 -------- Run | Yrd Mat Min Exi Min Mat Sto Fac Gar Fac Gar Hostile Shots Fired 637 | . . 21 . . 52 25 97 147 82 213 Missed 177 | . . 7 . . 12 8 31 35 29 55 Damage Taken 6753 | . 17 101 . . 652 276 891 1773 842 2201 Core 832 | . . 6 . . 67 55 87 126 173 318 Absorbed by Shields 8 | . . . . . . . . 8 . . Redirected to Shielding 19 | . . . . . . . 19 . . . Ignored by Resistances 160 | . . . . . . . . . . 160 Core Remaining (%) 85 | 100 . . . 97 . 77 . 69 . . Volleys Fired 310 | . 3 13 . . 61 34 51 80 29 39 Largest 3 | . 2 2 . . 2 2 3 3 3 3 Hottest 230 | . 50 40 . . 150 150 230 153 163 180 Shots Fired 652 | . 6 26 . . 122 66 142 135 55 100 Gun 351 | . 5 26 . . 115 66 77 22 1 39 Cannon 283 | . . . . . . . 65 113 48 57 Launcher 13 | . 1 . . . 7 . . . 5 . Special 5 | . . . . . . . . . 1 4 Kinetic 395 | . 5 26 . . 35 . 101 113 48 67 Thermal 182 | . . . . . 80 61 41 . . . Explosive 8 | . 1 . . . 7 . . . . . Electromagnetic 62 | . . . . . . 5 . 22 6 29 Robot Hit Streak 21 | . 2 4 . . 16 21 10 11 9 7 Robot Miss Streak 11 | . 1 3 . . 7 11 8 7 9 10 Penetration Max 1 | . . . . . . . 1 . . . Secondary Targets 3 | . . 2 . . . . 1 . . . Max Gunslinging Chain 1 | . . 1 . . . . 1 . . . Shots Hit Robots 421 | . 3 9 . . 93 47 90 69 36 74 Core Hits 328 | . . 6 . . 97 59 66 33 26 41 Critical Kills . | . . . . . . . . . . . Critical Parts Destroyed . | . . . . . . . . . . . Critical Strikes 15 | . . . . . . . 6 7 1 1 Blast 13 | . . . . . . . 6 6 1 . Corrupt 2 | . . . . . . . . 1 . 1 Melee Attacks . | . . . . . . . . . . . Impact . | . . . . . . . . . . . Slashing . | . . . . . . . . . . . Piercing . | . . . . . . . . . . . Sneak Attacks . | . . . . . . . . . . . Combat Hostiles . | . . . . . . . . . . . Follow-up Attacks . | . . . . . . . . . . . Damage Inflicted 10249 | . 39 147 . . 1948 1107 2130 2331 1130 1417 Guns 5060 | . 39 147 . . 1534 954 1104 697 47 538 Cannons 4065 | . . . . . . . 925 1632 842 666 Explosions 1122 | . . . . . 414 153 101 . 241 213 Melee . | . . . . . . . . . . . Ramming 2 | . . . . . . . . 2 . . Kinetic 5169 | . 39 147 . . 333 . 1429 1632 842 747 Thermal 2968 | . . . . . 1201 954 600 . . 213 Explosive 668 | . . . . . 414 153 101 . . . Electromagnetic 1442 | . . . . . . . . 697 288 457 Impact . | . . . . . . . . . . . Slashing . | . . . . . . . . . . . Piercing . | . . . . . . . . . . . Highest Corruption 3 | . . . . . . 2 2 3 3 3 Average Corruption 2 | . . . . . . 2 1 2 2 3 Corruption Purged . | . . . . . . . . . . . Corruption Blocked . | . . . . . . . . . . . Effects 55 | . . . . . . . 12 19 7 17 Message Errors 10 | . . . . . . . 1 3 1 5 Matter Fused 13 | . . . . . . . 2 4 2 5 Heat Flow Errors 10 | . . . . . . . 3 5 1 1 Energy Discharges 9 | . . . . . . . 3 3 2 1 Data Loss (minor) 7 | . . . . . . . 1 4 . 2 Data Loss (major) 2 | . . . . . . . 2 . . . Misfires 1 | . . . . . . . . . . 1 Alerts 2 | . . . . . . . . . 1 1 Weapon Failures 1 | . . . . . . . . . . 1 Overload Shots . | . . . . . . . . . . . Overflow Damage 51 | . . . . . 16 . 22 6 . 7 Projectiles 35 | . . . . . . . 22 6 . 7 Explosions 16 | . . . . . 16 . . . . . Melee . | . . . . . . . . . . . Knockbacks 35 | . . . . . . . 9 14 4 8 Impact . | . . . . . . . . . . . Kinetic 33 | . . . . . . . 9 13 4 7 Secondary 2 | . . . . . . . . 1 . 1 Self-Inflicted Damage 283 | . 17 . . . . 40 54 32 95 45 Shots 10 | . 1 . . . . 1 1 1 5 1 Rammed 2 | . . . . . . . . 2 . . Targets Rammed 2 | . . . . . . . . 2 . . Kicked . | . . . . . . . . . . . Crushed . | . . . . . . . . . . . Highest Temperature 563 | . . . . . 351 198 563 408 157 416 Average Temperature 113 | . . . . . 89 64 145 101 95 109 Received Heat Transfer 1863 | . . . . . 387 108 120 681 150 417 Effects 22 | . . . . . 1 . 19 1 . 1 Shutdowns 8 | . . . . . . . 7 1 . . Energy Bleed 5 | . . . . . . . 4 . . 1 Interference 2 | . . . . . . . 2 . . . Matter Decay 2 | . . . . . 1 . 1 . . . Short Circuit 2 | . . . . . . . 2 . . . Damage (major) 3 | . . . . . . . 3 . . . Siege Activations . | . . . . . . . . . . . Robots Corrupted 2 | . . . . . . . . . 1 1 Combat Hostiles 2 | . . . . . . . . . 1 1 Parts Fried 11 | . . . . . . . . 6 3 2 Impact Corruptions . | . . . . . . . . . . . Robots Melted . | . . . . . . . . . . . Combat Hostiles . | . . . . . . . . . . . Parts Melted 4 | . . . . . . 2 2 . . . Heat Transferred 2845 | . . . . . 1005 790 900 . . 150 Parts Sabotaged . | . . . . . . . . . . . Parts Stolen . | . . . . . . . . . . . Parts Stripped . | . . . . . . . . . . . Power Chain Reactions 3 | . . . . . . . . 1 . 2 Alert | -11 -10 -10 -10 -9 -8 -8 -7 -7 -6 -6 ------- Run | Yrd Mat Min Exi Min Mat Sto Fac Gar Fac Gar Peak Influence 1028 | . 23 88 . . 206 481 435 1028 724 577 Initial 539 | . . 8 . . . 26 170 219 539 413 Average 314 | . 8 72 . . 126 262 274 610 575 470 Maximum Alert Level 3 | . . . . . 1 2 2 3 3 2 Low Security (%) 36 | 100 100 100 . 100 98 33 12 . . . Level 1 30 | . . . . . 1 49 82 21 . . Level 2 26 | . . . . . . 16 5 41 95 100 Level 3 6 | . . . . . . . . 36 4 . Level 4 . | . . . . . . . . . . . Level 5 . | . . . . . . . . . . . High Security . | . . . . . . . . . . . Max Security . | . . . . . . . . . . . Squads Dispatched 17 | . . . . . 7 2 8 . . . Investigation 6 | . . . . . 3 1 2 . . . Extermination 4 | . . . . . . . 4 . . . Reinforcement 7 | . . . . . 4 1 2 . . . Assault . | . . . . . . . . . . . Garrison . | . . . . . . . . . . . Intercept . | . . . . . . . . . . . Searches Triggered . | . . . . . . . . . . . Construction Impeded . | . . . . . . . . . . . Haulers Reinforced 1 | . . . . . . . 1 . . . Active Scanning Responses . | . . . . . . . . . . . Cargo Convoy Interrupts . | . . . . . . . . . . . Stealth | -11 -10 -10 -10 -9 -8 -8 -7 -7 -6 -6 --------- Run | Yrd Mat Min Exi Min Mat Sto Fac Gar Fac Gar Distress Signals 4 | . . . . . 2 1 . . 1 . Communications Jammed 2 | . . . . . . 2 . . . . Distress Signals 2 | . . . . . . 2 . . . . Times Spotted 131 | . 1 5 . . 23 19 26 28 11 18 Peak Tracking Total 6 | . 1 3 . . 5 4 5 4 6 4 Tactical Retreats 9 | . . . . . 1 1 1 4 1 1 Traps | -11 -10 -10 -10 -9 -8 -8 -7 -7 -6 -6 ------- Run | Yrd Mat Min Exi Min Mat Sto Fac Gar Fac Gar Traps Triggered 21 | . . . . . . 3 2 12 1 3 Indirectly . | . . . . . . . . . . . Trap Hack Attempts . | . . . . . . . . . . . Triggered . | . . . . . . . . . . . Disarmed . | . . . . . . . . . . . Reprogrammed . | . . . . . . . . . . . Reused . | . . . . . . . . . . . Traps Extracted . | . . . . . . . . . . . Installed . | . . . . . . . . . . . Triggered 1 | . . 1 . . . . . . . . Machines | -11 -10 -10 -10 -9 -8 -8 -7 -7 -6 -6 ---------- Run | Yrd Mat Min Exi Min Mat Sto Fac Gar Fac Gar Machines Disabled 16 | . . . . . . 6 2 5 3 . Max in Single Turn 2 | . . . . . . 2 2 1 1 . Garrison Relay 3 | . . . . . . . . 3 . . Machines Repaired . | . . . . . . . . . . . Machines Dismantled . | . . . . . . . . . . . Machines Sabotaged . | . . . . . . . . . . . Overloaded Fab Kills . | . . . . . . . . . . . Hacking | -11 -10 -10 -10 -9 -8 -8 -7 -7 -6 -6 --------- Run | Yrd Mat Min Exi Min Mat Sto Fac Gar Fac Gar Machines Accessed 24 | . . . 2 . 2 7 7 3 3 . Terminals 17 | . . . . . 1 7 6 3 . . Fabricators 2 | . . . . . . . . . 2 . Repair Stations . | . . . . . . . . . . . Recycling Units . | . . . . . . . . . . . Scanalyzers 1 | . . . . . 1 . . . . . Garrison Access 2 | . . . . . . . 1 . 1 . Total Hacks 43 | . . . 2 . 2 12 18 6 3 . Successful 17 | . . . 2 . 1 7 2 2 3 . Failed 26 | . . . . . 1 5 16 4 . . Catastrophic 4 | . . . . . 1 . 2 1 . . Database Lockouts . | . . . . . . . . . . . Manual 9 | . . . 1 . 1 4 3 . . . Terminals 36 | . . . . . 1 12 17 6 . . Fabricators 2 | . . . . . . . . . 2 . Repair Stations . | . . . . . . . . . . . Recycling Units . | . . . . . . . . . . . Scanalyzers 1 | . . . . . 1 . . . . . Garrison Access 2 | . . . . . . . 1 . 1 . Terminal Hacks 11 | . . . 2 . 1 5 1 2 . . Record 1 | . . . 1 . . . . . . . Part Schematic 1 | . . . . . . . 1 . . . Open Door 3 | . . . . . . 3 . . . . Branch Access Points 1 | . . . . . 1 . . . . . Emergency Access Points 1 | . . . . . . . . 1 . . Unreport Threat 1 | . . . . . . 1 . . . . Recall Investigation 1 | . . . . . . 1 . . . . Patrol Navigation 1 | . . . . . . . . 1 . . Derelict Proto ID Bank 1 | . . . 1 . . . . . . . Fabricator Hacks 2 | . . . . . . . . . 2 . Network Status 2 | . . . . . . . . . 2 . Repair Station Hacks . | . . . . . . . . . . . Recycling Unit Hacks . | . . . . . . . . . . . Scanalyzer . | . . . . . . . . . . . Garrison Access Hacks 2 | . . . . . . . 1 . 1 . Unlock Access 2 | . . . . . . . 1 . 1 . Unauthorized Hacks 2 | . . . . . . 2 . . . . Terminals 2 | . . . . . . 2 . . . . Botnet 2 | . . . . . . 2 . . . . Fabricators . | . . . . . . . . . . . Repair Stations . | . . . . . . . . . . . Recycling Units . | . . . . . . . . . . . Scanalyzers . | . . . . . . . . . . . Garrison Access . | . . . . . . . . . . . Data Cores Recovered 1 | . . . . . . 1 . . . . Used . | . . . . . . . . . . . Hacking Detections 14 | . . . . . 1 5 6 2 . . Full Trace Events 2 | . . . . . . . 2 . . . Feedback Events . | . . . . . . . . . . . Feedback Blocked . | . . . . . . . . . . . Robot Schematics Acquired . | . . . . . . . . . . . Robots Built . | . . . . . . . . . . . Authchips . | . . . . . . . . . . . Time . | . . . . . . . . . . . Total Robot Build Rating . | . . . . . . . . . . . Part Schematics Acquired 1 | . . . . . . . 1 . . . Parts Built . | . . . . . . . . . . . Authchips . | . . . . . . . . . . . Time . | . . . . . . . . . . . Total Part Build Rating . | . . . . . . . . . . . Parts Repaired . | . . . . . . . . . . . Time . | . . . . . . . . . . . Parts Recycled . | . . . . . . . . . . . Recycled Matter . | . . . . . . . . . . . Retrieved Matter . | . . . . . . . . . . . Retrieved Components . | . . . . . . . . . . . Parts Scanalyzed . | . . . . . . . . . . . Part Schematics Acquired . | . . . . . . . . . . . Parts Damaged . | . . . . . . . . . . . Bothacking | -11 -10 -10 -10 -9 -8 -8 -7 -7 -6 -6 ------------ Run | Yrd Mat Min Exi Min Mat Sto Fac Gar Fac Gar Used RIF Installer 2 | . . . . . . . . 1 . 1 Alert ID Control 1 | . . . . . . . . . . 1 Robots Hacked 4 | . . . . . . . . . . 4 Non-combat . | . . . . . . . . . . . Combat 4 | . . . . . . . . . . 4 Robot Hacks Applied 4 | . . . . . . . . . . 4 amplify_resonance 1 | . . . . . . . . . . 1 overwrite_iff 2 | . . . . . . . . . . 2 formatsys_high 1 | . . . . . . . . . . 1 Relay Couplers Released 11 | . . . . . . . . 11 . . Machine Destruction 11 | . . . . . . . . 11 . . Attached 1 | . . . . . . . . . . 1 Fabnet Peak Effective % . | . . . . . . . . . . . Robots Rewired . | . . . . . . . . . . . Allies Hacked . | . . . . . . . . . . . Hacks Repelled . | . . . . . . . . . . . Allies | -11 -10 -10 -10 -9 -8 -8 -7 -7 -6 -6 -------- Run | Yrd Mat Min Exi Min Mat Sto Fac Gar Fac Gar Total Allies 7 | . . . . . . 2 . 2 . 3 Largest Group 2 | . . . . . . 2 . 2 . 2 Highest-Rated Group 157 | . . . . . . 115 . 157 . 58 Highest-Rated Ally 100 | . . . . . . 100 . 95 . 29 Total Orders . | . . . . . . . . . . . Ally Attacks 51 | . . . . . . 33 . 6 . 12 Total Damage 1723 | . . . . . . 1154 . 400 . 169 Kills 17 | . . . . . . 16 . 1 . . Allies Corrupted 2 | . . . . . . . . 2 . . Allies Melted . | . . . . . . . . . . . Intel | -11 -10 -10 -10 -9 -8 -8 -7 -7 -6 -6 ------- Run | Yrd Mat Min Exi Min Mat Sto Fac Gar Fac Gar Robot Analysis Total . | . . . . . . . . . . . Derelict Logs Recovered 1 | . . 1 . . . . . . . . Drone Launches . | . . . . . . . . . . . Drone Recoveries . | . . . . . . . . . . . Exploration | -11 -10 -10 -10 -9 -8 -8 -7 -7 -6 -6 ------------- Run | Yrd Mat Min Exi Min Mat Sto Fac Gar Fac Gar Turns Passed 9034 | 67 206 814 774 116 1219 1014 2103 1356 673 692 Spaces Moved 5268 | 38 118 482 465 49 626 623 1329 819 441 278 Core 8 | 5 . . . . . . . . . 3 Treads 1327 | 33 118 482 465 49 178 2 . . . . Legs 110 | . . . . . . . . . . 110 Wheels 3823 | . . . . . 448 621 1329 819 441 165 Hover . | . . . . . . . . . . . Flight . | . . . . . . . . . . . Fastest Speed 50 | 50 160 160 160 240 115 115 115 100 115 130 Average Speed 137 | 145 160 160 165 240 137 122 127 119 127 179 Slowest Speed 1550 | 160 160 160 240 240 240 250 130 130 145 1550 Overloaded Moves . | . . . . . . . . . . . Propulsion Burnouts . | . . . . . . . . . . . Robots Hopped . | . . . . . . . . . . . Cave-ins Triggered . | . . . . . . . . . . . Exploration Rate (%) 51 | 4 23 96 89 26 62 86 32 93 13 42 Regions Visited 10 Branch Regions 4 Pre-discovered Areas 1 | . . . 1 . . . . . . . Known Exits Taken 8 | . 1 1 1 1 1 1 1 . 1 . Unknown Exits Taken 1 | 1 . . . . . . . . . . Scrap Searched 1 | . . 1 . . . . . . . . Spaces Dug 8 | . 7 . . . . . 1 . . . Terrain Destroyed 147 | . 7 . . . 28 24 52 10 9 17 Melee . | . . . . . . . . . . . Projectile 41 | . . . . . . . 23 4 9 5 AOE 106 | . 7 . . . 28 24 29 6 . 12 Terrain Rammed . | . . . . . . . . . . . Walls Destroyed . | . . . . . . . . . . . Machines Disabled . | . . . . . . . . . . . Actions | -11 -10 -10 -10 -9 -8 -8 -7 -7 -6 -6 --------- Run | Yrd Mat Min Exi Min Mat Sto Fac Gar Fac Gar Total 6481 | 50 129 499 473 48 865 807 1635 1071 508 396 Wait 511 | . . 1 . . 117 113 192 44 11 33 Move 5257 | 37 117 481 464 48 625 622 1328 817 440 278 Hop . | . . . . . . . . . . . Pick Up 127 | 8 3 3 5 . 27 12 26 15 9 19 Fast Attach . | . . . . . . . . . . . Attach 74 | 5 3 . . . 11 5 13 11 10 16 Detach 6 | . . . . . 1 . . . 3 2 Swap 34 | . 2 . 1 . 7 11 6 2 2 3 Drop 64 | . 1 1 3 . 16 10 19 4 4 6 Fire 310 | . 3 13 . . 61 34 51 80 29 39 Melee . | . . . . . . . . . . . Ram 2 | . . . . . . . . 2 . . Kick . | . . . . . . . . . . . Crush . | . . . . . . . . . . . Escape Stasis 96 | . . . . . . . . 96 . . Rewire . | . . . . . . . . . . . Trap . | . . . . . . . . . . . Miscellaneous . | . . . . . . . . . . . Route ------- -11/Scrapyard -10/Materials -10/Mines (discovered 3 exits: *Mat x2 / *Exi) -10/Exiles -9/Mines -8/Materials (discovered 3 exits: *Fac x2 / *Sto) -8/Storage -7/Factory (discovered 3 exits: *Fac / [*Low] / Gar) -7/Garrison (discovered 3 exits: *Fac x3) -6/Factory -6/Garrison (discovered 1 exit: [*Fac]) History --------- Turn | Location | Event 4 | -11/Scrapyard | Discovered new exit (range 15) 68 | -11/Scrapyard | Entered Materials 172 | -10/Materials | Discovered new exit (range 10) 271 | -10/Materials | Identified exit to Mines 274 | -10/Materials | Entered Mines 313 | -10/Mines | Build established: Mutant 319 | -10/Mines | Met a Derelict bent on vengeance 319 | -10/Mines | Learned location of 1 exit from Materials 418 | -10/Mines | Discovered new exit (range 16) 443 | -10/Mines | Identified exit to Materials 825 | -10/Mines | Found a damaged Exp. Sensor Array with a note attached 828 | -10/Mines | Found Prototype Device 931 | -10/Mines | Discovered exit to Materials (range 9) 1080 | -10/Mines | Deemed a non-threat by the Exiles lab entrance 1080 | -10/Mines | Discovered new exit (range 5) 1084 | -10/Mines | Identified exit to Exiles 1088 | -10/Mines | Entered Exiles 1125 | -10/Exiles | Met 8R-AWN 1154 | -10/Exiles | Met EX-HEX 1204 | -10/Exiles | Met EX-BIN 1221 | -10/Exiles | Aligned with FarCom system 1223 | -10/Exiles | Given EX-Vault access code 1260 | -10/Exiles | Opened EX-Vault 1271 | -10/Exiles | Found XL Autogun Array 1276 | -10/Exiles | Found YOLO Cannon 1310 | -10/Exiles | Warned to stay clear of 0b10 Research branches 1357 | -10/Exiles | Met EX-DEC 1371 | -10/Exiles | Learned location of Zion (-7) 1514 | -10/Exiles | Visited The Gauntlet 1833 | -10/Exiles | Discovered new exit (range 14) 1860 | -10/Exiles | Identified exit to Mines 1862 | -10/Exiles | Stole two prototypes: YOLO Cannon, XL Autogun Array 1862 | -10/Exiles | Entered Mines 1949 | -9/Mines | Discovered new exit (range 13) 1975 | -9/Mines | Identified exit to Materials 1978 | -9/Mines | Entered Materials 1978 | -8/Materials | Evolved 4 slots: Propulsion x2, Utility x2 1979 | -8/Materials | Identified exit to Factory 2645 | -8/Materials | Met 7R-MNS 2710 | -8/Materials | Identified exit to Storage 3149 | -8/Materials | Discovered exit to Factory (range 16) 3197 | -8/Materials | Entered Storage 3357 | -8/Storage | Met 01-MTF 3760 | -8/Storage | Discovered exit to Factory (range 5) 3796 | -8/Storage | Found 01-MTF's Shockpuncher 4211 | -8/Storage | Entered Factory 4211 | -7/Factory | Evolved 2 slots: Power x1, Weapon x1 4213 | -7/Factory | FarCom data flow suspended 4537 | -7/Factory | Lost 3 parts (1p1u1w) 5100 | -7/Factory | Build established: Scavenger-Tank 5386 | -7/Factory | Discovered new exit (range 16) 5433 | -7/Factory | Build established: Hacker-Gunner 5769 | -7/Factory | Build established: Hacker-Tank 5972 | -7/Factory | Discovered new exit (range 5) 6313 | -7/Factory | Identified exit to Garrison 6314 | -7/Factory | Entered Garrison 6366 | -7/Garrison | Triggered checkpoint 6492 | -7/Garrison | Triggered checkpoint 6605 | -7/Garrison | Lost 3 parts (1p1u1w) 6667 | -7/Garrison | Discovered new exit (range 10) 6690 | -7/Garrison | Triggered checkpoint 6909 | -7/Garrison | Discovered new exit (range 12) 6944 | -7/Garrison | Garrison Relay disabled 6964 | -7/Garrison | Triggered checkpoint 7017 | -7/Garrison | Installed Relay Interface Framework 7156 | -7/Garrison | Triggered checkpoint 7275 | -7/Garrison | Build established: Mutant 7292 | -7/Garrison | Triggered checkpoint 7327 | -7/Garrison | Garrison Relay disabled 7370 | -7/Garrison | Found embedded Infiltrators 7436 | -7/Garrison | Discovered new exit (range 12) 7550 | -7/Garrison | Garrison Relay disabled 7670 | -7/Garrison | Entered Factory 7670 | -6/Factory | Evolved 2 slots: Utility x2 7672 | -6/Factory | Identified Exp. Sensor Array 8342 | -6/Factory | Identified exit to Garrison 8343 | -6/Factory | Entered Garrison 8364 | -6/Garrison | Build established: Bothacker-Tank 8371 | -6/Garrison | Triggered checkpoint 8525 | -6/Garrison | Lost 6 parts (2p3u1w) 8565 | -6/Garrison | Found Hvy. Reflective Plating 8568 | -6/Garrison | Found Hvy. Reflective Plating 8651 | -6/Garrison | Triggered checkpoint 8661 | -6/Garrison | Triggered checkpoint 8688 | -6/Garrison | Core integrity fell below 50% 8719 | -6/Garrison | Lost 3 allies 8914 | -6/Garrison | Discovered new exit (range 14) 8950 | -6/Garrison | Spotted B-86 Titan 9012 | -6/Garrison | Expanded RIF knowledge: Alert ID Control 9035 | -6/Garrison | Self-destructed Last Messages --------------- 08925_ Axe fried. 08925_ Microactuators fried. 08928_ Chain reaction triggered in Lgt. Angular Momentum Engine. 08928_ G-50 Soldier destroyed. 08935_ Acquired 70 matter. 08939_ Acquired 58 matter. 08941_ Acquired 70 matter. 08973_ Detecting nearby RIF Installer. 09005_ Triggered Alarm Trap. 09005_ An alarm sounds. Initiating installation procedure... 09012_ Expanded RIF knowledge: Alert ID Control. 09027_ Chain reaction triggered in Imp. Deuterium Engine. 09027_ Y-54 Guardian destroyed. 09028_ YH2CKFVG3OULHIT&/LARH78,PX5AHP4%#3 09029_ Hvy. Reflective Plating destroyed. 09031_ Lgt. Antimatter Reactor destroyed. 09034_ Lgt. Fission Core destroyed. Map ----- +----------------------------------------------------+ | ??????????????????????????????????? | | ??????????????????????????????????? | | ??????????????????????????????????? | | ??????????????????????????????????? | | ###???????????????????????????????? | | #???????????????????????????????? | | #???????????????????????????????? | | #???????????????????????????????? | | #??????????????????? ??????????? | | #??????????????????? ??????????? | | #??????????????????? ??????????? | | #??????????????????# ??????????? | | #??????????????????# ??????????? | | #??????????????????# ??????????? | | #??????????????????# ??????????? | | #??????????????????# #?????????? | | #??????????????????# #?????????? | | #??????????????????# #?????????? | | #??????????????????# #?????????? | | #??????????????????# #?????????? | | #########??????????# #?????????? | | " ???????????# ###???????? | | [!""#????????????????#YY#;#####???? | | [ "##?????#####??????# !; """#???? | | =" #?????# #??????# !%[ "#???? | | ######### < ######## Y;@ """#???? | | * #;#####???? | | ###???????? | | ## ################## #?????????? | | ?# #????????????????# #?????????? | | ?# ???????????????# #?????????? | | ?# ??????????????" #?????????? | | ?" ????????????" #?????????? | | ?" ???????????" #?????????? | | ??????????# #?????????? | | ?????????# #?????????? | | "" ?????????# ?????????? | | "" ! ?????????# ?????????? | | ?" ???????????# ?????????? | | ? ????????????# #?????????? | | ?? = ???????????????##??????????? | | ?? ????????????????????????????? | | ??????????????????????????????????? | | ??????????????????????????????????? | | ??????????????????????????????????? | | ??????????????????????????????????? | | ??????????????????????????????????? | | ??????????????????????????????????? | | ??????????????????????????????????? | | ??????????????????????????????????? | +----------------------------------------------------+ Best States ------------- Heat Dissipation 78 Coolant Potential 65 Energy Generation 36 Energy Capacity 380 Matter Stores 300 Matter Capacity 300 Sight Range 22 Terrain Scan Density 10 Jamming Range 12 Armor Coverage 600 Resistance: TH 25 Weapon Shielding 66 Evasion (%) 40 Recoil Reduction 4 Matter Filtering 30 Offensive Hacking 10 Defensive Hacking 10 Relay Coupler Types 1 Relay Coupler Value 24 Item Schematics ----------------- Arm. Huge Wheel | -7/Factory | Hacked Robot Schematics ------------------ None Fabricated ------------ Nothing Alien Tech Used ----------------- None Achievements -------------- Assimilation Complete Error 47 Challenges ------------ None Game ------ Seed LargeBombFalx Manual? 0 Play Time 01:05:12 Cumulative 88.5 hours Start 2024.04.13 @ 21:54:33 End 2024.04.13 @ 23:00:29 Sessions 3 Manual Loads 0 Difficulty Rogue Special Mode None Game No. 106 Rogue 106 Adventurer 0 Explorer 0 Win Type - Total 1 Types 1/0/0/0/0/0/0/0/0 Lore% 42 Gallery% 48 Achievement% 44 Wizard Run 0 Options --------- Layout 1 ASCII 0 Keyboard 0 Movement Mouse Keybinds 0 Fullscreen 2 Font 32/Smallcaps Map View 50x40 Zoom Use 0% Tactical HUD 1 Map Filters NONE Filters NONE Steam 1 RUN: cd5f79ae-3b53-4a64-8a26-dd1a8f4038d5